[Event "*** SCC Grand Prix: Titled Tuesday Blitz"]
[Site "Chess.com"]
[Date "2020.08.11"]
[Round "10"]
[White "VladimirBelous"]
[Black "vladislavkovalev"]
[Result "1/2-1/2"]
[WhiteElo "2779"]
[BlackElo "2888"]
[TimeControl "180+1"]
[EndTime "11:59:14 PDT"]
[Termination "Game drawn by repetition"]

1. Nf3 {[%clk 0:03:00.9]} 1... Nf6 {[%clk 0:03:00]} 2. c4 {[%clk 0:03:01.1]}
2... e6 {[%clk 0:03:00.2]} 3. g3 {[%clk 0:03:00.6]} 3... Be7 {[%clk 0:03:00.1]}
4. Bg2 {[%clk 0:03:00.8]} 4... d5 {[%clk 0:03:00.8]} 5. O-O {[%clk 0:03:01.1]}
5... O-O {[%clk 0:03:01.2]} 6. d4 {[%clk 0:03:01]} 6... dxc4 {[%clk 0:03:01.7]}
7. Qc2 {[%clk 0:03:01.4]} 7... a6 {[%clk 0:03:02]} 8. Qxc4 {[%clk 0:03:01.6]}
8... b5 {[%clk 0:03:02.2]} 9. Qb3 {[%clk 0:02:55.6]} 9... Bb7 {[%clk 0:03:01.7]}
10. Bg5 {[%clk 0:02:55.7]} 10... Nbd7 {[%clk 0:02:57.4]} 11. a4 {[%clk
0:02:48.5]} 11... Bd5 {[%clk 0:02:36.9]} 12. Qc2 {[%clk 0:02:41.5]} 12... Be4
{[%clk 0:02:33.8]} 13. Qd1 {[%clk 0:02:40.5]} 13... c5 {[%clk 0:02:10.3]} 14.
Nc3 {[%clk 0:02:37.8]} 14... Bc6 {[%clk 0:02:09.5]} 15. dxc5 {[%clk 0:01:56.7]}
15... b4 {[%clk 0:02:06.5]} 16. Na2 {[%clk 0:01:53.8]} 16... a5 {[%clk
0:02:05.3]} 17. Qc2 {[%clk 0:01:33.7]} 17... Rc8 {[%clk 0:02:03.4]} 18. Nc1
{[%clk 0:01:14.9]} 18... Nxc5 {[%clk 0:01:59.8]} 19. Nd3 {[%clk 0:01:04.4]}
19... Nxd3 {[%clk 0:01:44.6]} 20. Qxd3 {[%clk 0:01:04.2]} 20... Qxd3 {[%clk
0:01:42.2]} 21. exd3 {[%clk 0:01:05.1]} 21... Rfd8 {[%clk 0:01:40.3]} 22. Ne5
{[%clk 0:01:00.6]} 22... Bxg2 {[%clk 0:01:37.9]} 23. Kxg2 {[%clk 0:01:01.5]}
23... h6 {[%clk 0:01:35.9]} 24. Be3 {[%clk 0:00:55.8]} 24... Nd5 {[%clk
0:01:36]} 25. Rac1 {[%clk 0:00:50.6]} 25... Nxe3+ {[%clk 0:01:25.2]} 26. fxe3
{[%clk 0:00:50.1]} 26... Rxc1 {[%clk 0:01:25.9]} 27. Rxc1 {[%clk 0:00:49.8]}
27... Bf6 {[%clk 0:01:26.5]} 28. Nc4 {[%clk 0:00:23.1]} 28... Rxd3 {[%clk
0:01:25.6]} 29. Rc2 {[%clk 0:00:23.5]} 29... b3 {[%clk 0:01:21.3]} 30. Re2
{[%clk 0:00:21.1]} 30... Rd5 {[%clk 0:01:21.7]} 31. e4 {[%clk 0:00:19.8]} 31...
Rc5 {[%clk 0:01:18.2]} 32. Na3 {[%clk 0:00:19.3]} 32... Be5 {[%clk 0:01:08.8]}
33. Kf3 {[%clk 0:00:18.9]} 33... g5 {[%clk 0:00:56.6]} 34. Ke3 {[%clk 0:00:19]}
34... g4 {[%clk 0:00:53.1]} 35. Kd3 {[%clk 0:00:19.3]} 35... h5 {[%clk
0:00:47.6]} 36. Nc4 {[%clk 0:00:19.4]} 36... Bg7 {[%clk 0:00:38.4]} 37. e5
{[%clk 0:00:18.4]} 37... Rd5+ {[%clk 0:00:36]} 38. Kc3 {[%clk 0:00:18.5]} 38...
Bf8 {[%clk 0:00:34.6]} 39. Kxb3 {[%clk 0:00:16.4]} 39... Bb4 {[%clk 0:00:34.4]}
40. Kc2 {[%clk 0:00:13.9]} 40... Kg7 {[%clk 0:00:32.2]} 41. Re4 {[%clk
0:00:10.2]} 41... Kg6 {[%clk 0:00:23.2]} 42. b3 {[%clk 0:00:10.7]} 42... f5
{[%clk 0:00:20.3]} 43. exf6 {[%clk 0:00:09.3]} 43... Kxf6 {[%clk 0:00:20.9]} 44.
Rf4+ {[%clk 0:00:09.7]} 44... Kg5 {[%clk 0:00:17.3]} 45. Rf2 {[%clk 0:00:07.2]}
45... h4 {[%clk 0:00:14.1]} 46. Re2 {[%clk 0:00:07.5]} 46... Rf5 {[%clk
0:00:11.7]} 47. Kd3 {[%clk 0:00:06.4]} 47... Rf3+ {[%clk 0:00:09.5]} 48. Re3
{[%clk 0:00:06.9]} 48... Rf2 {[%clk 0:00:06.8]} 49. gxh4+ {[%clk 0:00:07]} 49...
Kxh4 {[%clk 0:00:07]} 50. Rxe6 {[%clk 0:00:06.7]} 50... Rxh2 {[%clk 0:00:05.7]}
51. Ne3 {[%clk 0:00:06.9]} 51... Rh3 {[%clk 0:00:02.4]} 52. Ke4 {[%clk
0:00:05.4]} 52... Kg3 {[%clk 0:00:01.2]} 53. Rg6 {[%clk 0:00:04.6]} 53... Kf2
{[%clk 0:00:01.7]} 54. Nxg4+ {[%clk 0:00:04.9]} 54... Ke2 {[%clk 0:00:02.4]} 55.
Ne5 {[%clk 0:00:04]} 55... Rxb3 {[%clk 0:00:02.4]} 56. Rg2+ {[%clk 0:00:04.9]}
56... Kf1 {[%clk 0:00:03.1]} 57. Rc2 {[%clk 0:00:05]} 57... Ra3 {[%clk
0:00:03.5]} 58. Nc4 {[%clk 0:00:04.6]} 58... Rxa4 {[%clk 0:00:03.7]} 59. Ne3+
{[%clk 0:00:05.3]} 59... Kg1 {[%clk 0:00:03.9]} 60. Kf3 {[%clk 0:00:05.9]} 60...
Ra1 {[%clk 0:00:02.3]} 61. Rg2+ {[%clk 0:00:04.7]} 61... Kh1 {[%clk 0:00:02.8]}
62. Rg6 {[%clk 0:00:04.8]} 62... Bc5 {[%clk 0:00:02.8]} 63. Rh6+ {[%clk
0:00:04.2]} 63... Kg1 {[%clk 0:00:03.4]} 64. Rg6+ {[%clk 0:00:04.8]} 64... Kh1
{[%clk 0:00:04]} 65. Rh6+ {[%clk 0:00:05.3]} 65... Kg1 {[%clk 0:00:04.4]} 66.
Rg6+ {[%clk 0:00:02.5]} 66... Kh1 {[%clk 0:00:04.7]} 1/2-1/2

[Event "*** SCC Grand Prix: Titled Tuesday Blitz"]
[Site "Chess.com"]
[Date "2020.08.11"]
[Round "10"]
[White "carlsen1001"]
[Black "Brave_spirit12"]
[Result "0-1"]
[WhiteElo "2411"]
[BlackElo "2534"]
[TimeControl "180+1"]
[EndTime "11:59:21 PDT"]
[Termination "Brave_spirit12 won by resignation"]

1. c4 {[%clk 0:03:00.9]} 1... Nf6 {[%clk 0:02:59.9]} 2. Nf3 {[%clk 0:03:01.1]}
2... c5 {[%clk 0:02:59.9]} 3. g3 {[%clk 0:03:01.4]} 3... Nc6 {[%clk 0:02:56.7]}
4. Bg2 {[%clk 0:03:01.8]} 4... g6 {[%clk 0:02:54.5]} 5. Nc3 {[%clk 0:03:01.5]}
5... Bg7 {[%clk 0:02:54.4]} 6. O-O {[%clk 0:03:00.7]} 6... O-O {[%clk
0:02:53.9]} 7. d4 {[%clk 0:03:01.2]} 7... cxd4 {[%clk 0:02:54.8]} 8. Nxd4 {[%clk
0:03:01.7]} 8... d6 {[%clk 0:02:55.1]} 9. Nb3 {[%clk 0:03:01.1]} 9... Be6 {[%clk
0:02:53.6]} 10. Nd5 {[%clk 0:03:00.4]} 10... Rc8 {[%clk 0:02:52.9]} 11. Bg5
{[%clk 0:02:58.7]} 11... a5 {[%clk 0:02:43.6]} 12. Bxf6 {[%clk 0:02:55.4]} 12...
exf6 {[%clk 0:02:41.8]} 13. Nd4 {[%clk 0:02:50.1]} 13... Nxd4 {[%clk 0:02:38.9]}
14. Qxd4 {[%clk 0:02:50.1]} 14... f5 {[%clk 0:02:39.8]} 15. Qd3 {[%clk
0:02:50.2]} 15... a4 {[%clk 0:02:24.7]} 16. Rab1 {[%clk 0:02:47.6]} 16... Rc5
{[%clk 0:02:19.9]} 17. b4 {[%clk 0:02:41.7]} 17... axb3 {[%clk 0:02:20.8]} 18.
axb3 {[%clk 0:02:42.1]} 18... b5 {[%clk 0:02:09.5]} 19. cxb5 {[%clk 0:02:22.7]}
19... Qb8 {[%clk 0:01:56.9]} 20. b6 {[%clk 0:02:07.9]} 20... Bxd5 {[%clk
0:01:55.6]} 21. Bxd5 {[%clk 0:02:07.3]} 21... Qxb6 {[%clk 0:01:56]} 22. e3
{[%clk 0:02:01]} 22... Rc3 {[%clk 0:01:52.8]} 23. Qd2 {[%clk 0:02:00.2]} 23...
Rfc8 {[%clk 0:01:49.8]} 24. Bc4 {[%clk 0:02:00.1]} 24... Qb4 {[%clk 0:01:43]}
25. Qd5 {[%clk 0:01:56.5]} 25... Rc7 {[%clk 0:01:28.7]} 26. Rfd1 {[%clk
0:01:56.1]} 26... Bf8 {[%clk 0:01:26.1]} 27. Ra1 {[%clk 0:01:51.9]} 27... Qc5
{[%clk 0:01:18.6]} 28. Qd2 {[%clk 0:01:48.6]} 28... Qe5 {[%clk 0:01:11.5]} 29.
Ra8 {[%clk 0:01:42.1]} 29... Kg7 {[%clk 0:01:02.9]} 30. Qe2 {[%clk 0:01:15.4]}
30... Be7 {[%clk 0:00:57.4]} 31. Qf3 {[%clk 0:01:11.5]} 31... h5 {[%clk
0:00:52.6]} 32. h4 {[%clk 0:01:07.8]} 32... Rc2 {[%clk 0:00:46.1]} 33. Rd5
{[%clk 0:01:01.5]} 33... Qb2 {[%clk 0:00:41.9]} 34. Kg2 {[%clk 0:00:55.6]} 34...
Rc5 {[%clk 0:00:33.8]} 35. Rxc5 {[%clk 0:00:51.1]} 35... dxc5 {[%clk 0:00:34.7]}
36. Ra7 {[%clk 0:00:51.8]} 36... Qe5 {[%clk 0:00:32.3]} 37. Qd1 {[%clk
0:00:45.6]} 37... Qb2 {[%clk 0:00:23.1]} 38. Qe1 {[%clk 0:00:32.7]} 38... Qe5
{[%clk 0:00:19.1]} 39. Kg1 {[%clk 0:00:32.8]} 39... Kh6 {[%clk 0:00:15.1]} 40.
Qd1 {[%clk 0:00:27.8]} 40... Qb2 {[%clk 0:00:13]} 41. Qf3 {[%clk 0:00:25.9]}
41... Qe5 {[%clk 0:00:09.6]} 42. Qf4+ {[%clk 0:00:21.9]} 42... Qxf4 {[%clk
0:00:09.7]} 43. exf4 {[%clk 0:00:22.1]} 43... Bf6 {[%clk 0:00:09.6]} 44. Rxf7
{[%clk 0:00:20.3]} 44... Bd4 {[%clk 0:00:08.9]} 45. Rf8 {[%clk 0:00:19.8]} 45...
Rxf2 {[%clk 0:00:06.4]} 46. Rh8+ {[%clk 0:00:19.5]} 46... Kg7 {[%clk 0:00:04.8]}
47. Rg8+ {[%clk 0:00:19.2]} 47... Kh7 {[%clk 0:00:05.3]} 48. Kh1 {[%clk
0:00:15.1]} 48... Rf3 {[%clk 0:00:03.6]} 49. Kh2 {[%clk 0:00:15.1]} 49... Rf2+
{[%clk 0:00:04]} 50. Kh3 {[%clk 0:00:14.4]} 50... Rd2 {[%clk 0:00:04.5]} 51. Rd8
{[%clk 0:00:13]} 51... Rc2 {[%clk 0:00:04.4]} 52. Rd7+ {[%clk 0:00:12]} 52...
Kh8 {[%clk 0:00:04.1]} 53. Re7 {[%clk 0:00:06.3]} 53... Rc3 {[%clk 0:00:02]} 54.
Re8+ {[%clk 0:00:06.6]} 54... Kg7 {[%clk 0:00:02.8]} 55. Re2 {[%clk 0:00:07.1]}
55... Kf6 {[%clk 0:00:03.7]} 56. Re6+ {[%clk 0:00:06.8]} 56... Kf7 {[%clk
0:00:03.8]} 57. Re3+ {[%clk 0:00:05.6]} 57... Rxc4 {[%clk 0:00:03.8]} 58. bxc4
{[%clk 0:00:05.2]} 58... Bxe3 {[%clk 0:00:04.1]} 59. Kg2 {[%clk 0:00:05.6]}
59... Bd4 {[%clk 0:00:04.4]} 60. Kf3 {[%clk 0:00:06.2]} 60... Ke6 {[%clk
0:00:05.3]} 61. Ke2 {[%clk 0:00:06.7]} 61... Kd6 {[%clk 0:00:05.6]} 62. Kf3
{[%clk 0:00:07]} 62... Kc6 {[%clk 0:00:06]} 63. Ke2 {[%clk 0:00:07.5]} 63... Kb6
{[%clk 0:00:06.5]} 64. Kd3 {[%clk 0:00:08]} 64... Ka5 {[%clk 0:00:06.9]} 65. Ke2
{[%clk 0:00:08.4]} 65... Kb4 {[%clk 0:00:07.4]} 66. Kd3 {[%clk 0:00:08.9]} 66...
Kb3 {[%clk 0:00:07.6]} 0-1

[Event "*** SCC Grand Prix: Titled Tuesday Blitz"]
[Site "Chess.com"]
[Date "2020.08.11"]
[Round "10"]
[White "Evgeny81"]
[Black "evgenyermolaev"]
[Result "1-0"]
[WhiteElo "2698"]
[BlackElo "2483"]
[TimeControl "180+1"]
[EndTime "11:59:23 PDT"]
[Termination "Evgeny81 won on time"]

1. d4 {[%clk 0:03:00.9]} 1... c5 {[%clk 0:02:59.5]} 2. d5 {[%clk 0:03:00.3]}
2... Nf6 {[%clk 0:02:58.5]} 3. Nc3 {[%clk 0:02:59.2]} 3... b5 {[%clk 0:02:57.5]}
4. Nxb5 {[%clk 0:02:57.9]} 4... Qa5+ {[%clk 0:02:57.6]} 5. Nc3 {[%clk
0:02:57.8]} 5... Ne4 {[%clk 0:02:57.6]} 6. Bd2 {[%clk 0:02:53.3]} 6... Nxd2
{[%clk 0:02:56.8]} 7. Qxd2 {[%clk 0:02:53.6]} 7... g6 {[%clk 0:02:49.5]} 8. e3
{[%clk 0:02:46.8]} 8... Bg7 {[%clk 0:02:43.8]} 9. Nd1 {[%clk 0:02:45.2]} 9...
Qb6 {[%clk 0:02:32]} 10. Nf3 {[%clk 0:02:42.3]} 10... O-O {[%clk 0:02:24.6]} 11.
Be2 {[%clk 0:02:41.5]} 11... d6 {[%clk 0:02:20.2]} 12. O-O {[%clk 0:02:40.7]}
12... e6 {[%clk 0:02:02.9]} 13. e4 {[%clk 0:02:35.4]} 13... exd5 {[%clk
0:01:52.1]} 14. exd5 {[%clk 0:02:36.3]} 14... Nd7 {[%clk 0:01:50.5]} 15. c3
{[%clk 0:02:31.7]} 15... Nf6 {[%clk 0:01:46.1]} 16. Ne3 {[%clk 0:02:31.3]} 16...
Ba6 {[%clk 0:01:27.6]} 17. Bxa6 {[%clk 0:02:28.2]} 17... Qxa6 {[%clk 0:01:28.5]}
18. Rfe1 {[%clk 0:02:17.7]} 18... Rab8 {[%clk 0:01:25.3]} 19. Qe2 {[%clk
0:02:17.2]} 19... Qb7 {[%clk 0:01:08.6]} 20. Nc4 {[%clk 0:02:01.1]} 20... Nxd5
{[%clk 0:01:07.9]} 21. Rad1 {[%clk 0:01:56.2]} 21... Nf4 {[%clk 0:00:53.8]} 22.
Qd2 {[%clk 0:01:52.1]} 22... Ne6 {[%clk 0:00:23.4]} 23. Qxd6 {[%clk 0:01:45.6]}
23... Qb5 {[%clk 0:00:23.3]} 24. b3 {[%clk 0:01:31]} 24... Bxc3 {[%clk
0:00:22.3]} 25. Rxe6 {[%clk 0:01:31]} 25... fxe6 {[%clk 0:00:17.1]} 26. Qxe6+
{[%clk 0:01:30.6]} 26... Kh8 {[%clk 0:00:16.2]} 27. Ng5 {[%clk 0:01:25.7]} 27...
Bd4 {[%clk 0:00:09.1]} 28. Qh3 {[%clk 0:01:06.9]} 28... Qb7 {[%clk 0:00:08.4]}
29. Ne6 {[%clk 0:00:59]} 29... Bxf2+ {[%clk 0:00:07.4]} 30. Kh1 {[%clk
0:00:59.5]} 30... Rf6 {[%clk 0:00:06.6]} 31. Qc3 {[%clk 0:00:51.2]} 31... Bd4
{[%clk 0:00:06.7]} 32. Nxd4 {[%clk 0:00:50.5]} 32... cxd4 {[%clk 0:00:07.6]} 33.
Qxd4 {[%clk 0:00:51.1]} 33... Qg7 {[%clk 0:00:08.1]} 34. Qg1 {[%clk 0:00:19.2]}
34... Rbf8 {[%clk 0:00:08]} 35. h3 {[%clk 0:00:19.4]} 35... Qc7 {[%clk
0:00:06.3]} 36. Qd4 {[%clk 0:00:17.8]} 36... Qf4 {[%clk 0:00:05.9]} 37. Qc5
{[%clk 0:00:15.8]} 37... Kg8 {[%clk 0:00:02.9]} 38. Rd4 {[%clk 0:00:14.2]} 38...
Qf1+ {[%clk 0:00:02.7]} 39. Kh2 {[%clk 0:00:14.8]} 39... Qf5 {[%clk 0:00:03.6]}
40. Qc7 {[%clk 0:00:12.4]} 40... Re6 {[%clk 0:00:02.2]} 41. Rd7 {[%clk
0:00:11.1]} 41... Qf4+ {[%clk 0:00:02.4]} 42. Qxf4 {[%clk 0:00:11]} 42... Rxf4
{[%clk 0:00:03.3]} 43. Rxa7 {[%clk 0:00:11.4]} 43... Rf7 {[%clk 0:00:03.8]} 44.
Rxf7 {[%clk 0:00:08.3]} 44... Kxf7 {[%clk 0:00:04.7]} 45. Kg3 {[%clk 0:00:08.5]}
45... Re2 {[%clk 0:00:04.3]} 46. a4 {[%clk 0:00:08.2]} 46... Ke6 {[%clk
0:00:04.8]} 47. Kf3 {[%clk 0:00:07.6]} 47... Ra2 {[%clk 0:00:03.9]} 48. Ke4
{[%clk 0:00:06.8]} 48... Rxg2 {[%clk 0:00:03.4]} 49. b4 {[%clk 0:00:06.4]} 49...
Rg3 {[%clk 0:00:03]} 50. b5 {[%clk 0:00:06.1]} 50... Rxh3 {[%clk 0:00:03.4]} 51.
a5 {[%clk 0:00:06.1]} 51... Rb3 {[%clk 0:00:03.3]} 52. b6 {[%clk 0:00:04.8]}
52... Rb4 {[%clk 0:00:02.7]} 53. Kd4 {[%clk 0:00:04.7]} 53... Kd7 {[%clk
0:00:02.6]} 54. Kc5 {[%clk 0:00:04.8]} 54... Rb1 {[%clk 0:00:01.8]} 55. a6
{[%clk 0:00:05.1]} 55... Kc8 {[%clk 0:00:01.9]} 56. Nd6+ {[%clk 0:00:04.3]}
56... Kb8 {[%clk 0:00:01.8]} 57. Kc6 {[%clk 0:00:04.6]} 57... Rc1+ {[%clk
0:00:01.7]} 58. Kd7 {[%clk 0:00:05.1]} 58... Rd1 {[%clk 0:00:01.4]} 59. a7+
{[%clk 0:00:04.2]} 59... Ka8 {[%clk 0:00:01.9]} 60. Kc7 {[%clk 0:00:04.3]} 60...
Rc1+ {[%clk 0:00:02.3]} 61. Kd7 {[%clk 0:00:03.5]} 61... Rb1 {[%clk 0:00:02.5]}
62. Kc6 {[%clk 0:00:02.9]} 62... g5 {[%clk 0:00:02.6]} 63. Nb5 {[%clk
0:00:02.7]} 63... Rc1+ {[%clk 0:00:02.7]} 64. Kd7 {[%clk 0:00:02.5]} 64... g4
{[%clk 0:00:03]} 65. Nc7+ {[%clk 0:00:02.4]} 1-0

[Event "*** SCC Grand Prix: Titled Tuesday Blitz"]
[Site "Chess.com"]
[Date "2020.08.11"]
[Round "10"]
[White "DonPreuss"]
[Black "ExtremeLearner"]
[Result "1/2-1/2"]
[WhiteElo "2241"]
[BlackElo "2369"]
[TimeControl "180+1"]
[EndTime "11:59:24 PDT"]
[Termination "Game drawn - insufficient material"]

1. d4 {[%clk 0:03:00.9]} 1... Nf6 {[%clk 0:02:57.2]} 2. Nc3 {[%clk 0:02:59.7]}
2... d5 {[%clk 0:02:56.5]} 3. e4 {[%clk 0:02:59]} 3... Nxe4 {[%clk 0:02:54.7]}
4. Nxe4 {[%clk 0:02:58.1]} 4... dxe4 {[%clk 0:02:55.6]} 5. Bc4 {[%clk
0:02:57.9]} 5... Bf5 {[%clk 0:02:48.6]} 6. c3 {[%clk 0:02:57.5]} 6... e6 {[%clk
0:02:44.7]} 7. Ne2 {[%clk 0:02:56.1]} 7... Nd7 {[%clk 0:02:41.8]} 8. O-O {[%clk
0:02:55.8]} 8... Nb6 {[%clk 0:02:41]} 9. Bb3 {[%clk 0:02:54.9]} 9... Be7 {[%clk
0:02:35.4]} 10. Ng3 {[%clk 0:02:54.2]} 10... Bg6 {[%clk 0:02:35.5]} 11. Re1
{[%clk 0:02:53.4]} 11... c5 {[%clk 0:02:32.9]} 12. Nxe4 {[%clk 0:02:40.7]} 12...
cxd4 {[%clk 0:02:30.8]} 13. cxd4 {[%clk 0:02:41.6]} 13... O-O {[%clk 0:02:30.2]}
14. Nc5 {[%clk 0:02:26.6]} 14... Qc7 {[%clk 0:02:09.6]} 15. Be3 {[%clk
0:02:23.8]} 15... Rad8 {[%clk 0:02:03.2]} 16. Rc1 {[%clk 0:02:19.5]} 16... Qb8
{[%clk 0:01:47.6]} 17. Qf3 {[%clk 0:02:16]} 17... Nd5 {[%clk 0:01:38.7]} 18. Ne4
{[%clk 0:01:43]} 18... Bb4 {[%clk 0:01:07.4]} 19. Red1 {[%clk 0:01:38.9]} 19...
b5 {[%clk 0:00:44.4]} 20. h4 {[%clk 0:01:32.8]} 20... Nxe3 {[%clk 0:00:29]} 21.
Qxe3 {[%clk 0:01:03.2]} 21... a5 {[%clk 0:00:25.6]} 22. a3 {[%clk 0:01:01.9]}
22... Bd6 {[%clk 0:00:23.3]} 23. Qf3 {[%clk 0:00:47.9]} 23... Bf4 {[%clk
0:00:14.3]} 24. Rc5 {[%clk 0:00:42.5]} 24... h5 {[%clk 0:00:09.9]} 25. Ng5
{[%clk 0:00:39.3]} 25... Bh2+ {[%clk 0:00:07.4]} 26. Kh1 {[%clk 0:00:38.3]}
26... a4 {[%clk 0:00:07.8]} 27. Ba2 {[%clk 0:00:35.5]} 27... Bd6 {[%clk
0:00:08.2]} 28. Rcc1 {[%clk 0:00:25.1]} 28... Rc8 {[%clk 0:00:08.5]} 29. Rxc8
{[%clk 0:00:15.9]} 29... Rxc8 {[%clk 0:00:09.4]} 30. Bb1 {[%clk 0:00:16.2]}
30... Bxb1 {[%clk 0:00:08]} 31. Rxb1 {[%clk 0:00:16.7]} 31... Qc7 {[%clk
0:00:06.7]} 32. Qe2 {[%clk 0:00:12.5]} 32... Qc1+ {[%clk 0:00:06.2]} 33. Qf1
{[%clk 0:00:12.4]} 33... Qxf1+ {[%clk 0:00:05]} 34. Rxf1 {[%clk 0:00:10.1]}
34... Rc2 {[%clk 0:00:05.9]} 35. Rb1 {[%clk 0:00:08.1]} 35... g6 {[%clk
0:00:04.5]} 36. f3 {[%clk 0:00:08.2]} 36... Bf4 {[%clk 0:00:04.6]} 37. Ne4
{[%clk 0:00:08]} 37... e5 {[%clk 0:00:05.1]} 38. d5 {[%clk 0:00:06.7]} 38... f5
{[%clk 0:00:04.3]} 39. Nc3 {[%clk 0:00:06.5]} 39... Rd2 {[%clk 0:00:03.4]} 40.
Rd1 {[%clk 0:00:05]} 40... Rxd1+ {[%clk 0:00:03.4]} 41. Nxd1 {[%clk 0:00:05.1]}
41... e4 {[%clk 0:00:04.3]} 42. fxe4 {[%clk 0:00:04]} 42... fxe4 {[%clk
0:00:05.2]} 43. Kg1 {[%clk 0:00:04.4]} 43... e3 {[%clk 0:00:05.2]} 44. Kf1
{[%clk 0:00:04.5]} 44... Kf7 {[%clk 0:00:05.8]} 45. Ke2 {[%clk 0:00:04.3]} 45...
Be5 {[%clk 0:00:05.7]} 46. Nxe3 {[%clk 0:00:03.9]} 46... Bxb2 {[%clk 0:00:05.5]}
47. Nc2 {[%clk 0:00:04]} 47... Ke7 {[%clk 0:00:04]} 48. Kd3 {[%clk 0:00:04.4]}
48... Kd6 {[%clk 0:00:04.4]} 49. Ke4 {[%clk 0:00:04.9]} 49... b4 {[%clk
0:00:04]} 50. axb4 {[%clk 0:00:03.1]} 50... a3 {[%clk 0:00:04.9]} 51. b5 {[%clk
0:00:03.5]} 51... a2 {[%clk 0:00:05.2]} 52. Kf4 {[%clk 0:00:03]} 52... a1=Q
{[%clk 0:00:05.5]} 53. Nxa1 {[%clk 0:00:03.4]} 53... Bxa1 {[%clk 0:00:06.4]} 54.
Kg5 {[%clk 0:00:03.8]} 54... Kxd5 {[%clk 0:00:06.6]} 55. Kxg6 {[%clk 0:00:04.3]}
55... Be5 {[%clk 0:00:07.1]} 56. Kxh5 {[%clk 0:00:04.4]} 56... Bg3 {[%clk
0:00:08]} 57. Kg4 {[%clk 0:00:03.2]} 57... Bf2 {[%clk 0:00:08.6]} 58. h5 {[%clk
0:00:03.8]} 58... Ke6 {[%clk 0:00:09.5]} 59. Kf3 {[%clk 0:00:01.7]} 59... Bb6
{[%clk 0:00:08.2]} 60. g4 {[%clk 0:00:02.6]} 60... Kf6 {[%clk 0:00:09.1]} 61.
Kf4 {[%clk 0:00:03]} 61... Bc7+ {[%clk 0:00:09.4]} 62. Kf3 {[%clk 0:00:03.3]}
62... Kg5 {[%clk 0:00:09.8]} 63. Ke4 {[%clk 0:00:01.2]} 63... Bb6 {[%clk
0:00:10.1]} 64. Kd5 {[%clk 0:00:02.1]} 64... Kxg4 {[%clk 0:00:10.2]} 65. Kc6
{[%clk 0:00:03]} 65... Be3 {[%clk 0:00:09.8]} 66. h6 {[%clk 0:00:02.9]} 66...
Bxh6 {[%clk 0:00:10.1]} 67. b6 {[%clk 0:00:03.8]} 67... Bf4 {[%clk 0:00:10.7]}
68. b7 {[%clk 0:00:04.7]} 68... Bb8 {[%clk 0:00:10]} 69. Kd7 {[%clk 0:00:05.6]}
69... Kf5 {[%clk 0:00:10.1]} 70. Kc8 {[%clk 0:00:06.5]} 70... Be5 {[%clk
0:00:10.7]} 71. b8=Q {[%clk 0:00:06.9]} 71... Bxb8 {[%clk 0:00:11.2]} 1/2-1/2